bitfinex/quotes_ETHUSD_20250801
["timestamp","ask_amount","ask_price","bid_price","bid_amount"]
[1754009955854,0.1352,3690.8,3690.4,0.24786609]
[1754009956176,0.64142537,3690.9,3690.5,0.24786609]
[1754009956355,5.189,3691.1,3690.6,0.24786609]
[1754009956679,0.1352,3691.0,3690.7,0.24786609]
[1754009956853,0.1352,3691.0,3690.8,0.24786609]
[1754009957058,0.5788,3691.0,3690.3,0.1352]
[1754009957253,0.5788,3691.0,3690.4,0.55]
[1754009957457,0.1352,3691.0,3690.4,0.55]
[1754009957960,0.1352,3690.9,3690.6,0.55]
[1754009958275,2.0574,3690.9,3690.8,0.55]
[1754009958444,2.0574,3690.9,3690.8,0.79850405]
[1754009959062,0.1352,3690.9,3690.4,0.55]
[1754009959388,6.511,3692.1,3690.3,0.55]
[1754009959678,1.9222,3691.7,3690.3,0.55]
[1754009959853,0.1352,3690.9,3690.3,0.6852]
[1754009960060,5.185,3690.8,3690.5,0.55]
[1754009960266,5.185,3690.8,3690.7,0.55]
[1754009960454,5.185,3690.8,3689.8,1.9019]
[1754009960781,5.185,3690.8,3690.1,2.70988418]
[1754009961080,3.28472166,3690.8,3690.3,0.55]
[1754009961279,3.28472166,3690.8,3690.5,0.55]
[1754009961450,3.28472166,3690.8,3690.6,0.24862086]
[1754009961647,3.28472166,3690.8,3690.7,0.24862086]
[1754009961980,3.86459188,3690.8,3689.9,0.55]
[1754009962184,3.86459188,3690.8,3689.8,1.9019]
[1754009962185,0.25139805,3690.7,3690.1,0.55]
[1754009962382,0.25139805,3690.6,3690.1,0.55]
[1754009962683,0.25139805,3690.5,3690.2,5.60406772]
[1754009962852,5.182,3691.0,3690.1,3.46813731]
[1754009962853,0.25139805,3690.4,3690.1,3.46813731]
[1754009963048,0.25139805,3690.4,3689.6,3.0]
[1754009963049,0.25139805,3690.3,3690.2,5.60408022]
[1754009963250,5.182,3691.0,3690.3,3.2597933]
[1754009963459,0.25140403,3690.9,3690.2,5.05405737]
[1754009963661,0.25140403,3690.8,3690.2,2.3442]
[1754009963958,5.182,3691.0,3690.2,2.3442]
[1754009963959,0.25140403,3690.7,3690.2,2.3434]
[1754009964164,0.25140403,3690.6,3690.2,2.70987344]
[1754009964371,0.25140403,3690.5,3690.3,0.4423]
[1754009964577,0.25140403,3690.4,3690.3,0.4423]
[1754009964965,5.182,3691.0,3690.3,0.4423]
[1754009965286,5.182,3691.0,3690.3,3.15210009]
[1754009965448,5.182,3691.0,3690.4,0.55]
[1754009966461,7.0267,3691.0,3690.6,0.55]
[1754009966661,7.0267,3691.0,3690.1,0.20169715]
[1754009966662,5.7002,3691.0,3690.2,0.55]
[1754009967103,5.7002,3691.0,3690.4,0.55]
[1754009967104,5.182,3691.0,3690.4,0.55]
[1754009967278,5.182,3691.0,3690.6,0.55]
[1754009967450,5.182,3691.0,3690.8,0.55]
[1754009967650,5.182,3691.0,3690.6,0.55]
[1754009967651,6.511,3692.1,3691.0,3.55]
[1754009967855,6.511,3692.1,3690.9,2.59275111]
[1754009967856,6.511,3692.1,3691.2,0.55]
[1754009968054,1.3265,3692.7,3691.3,0.24855111]
[1754009968304,5.116,3692.5,3692.0,2.70850091]
[1754009968453,5.116,3692.5,3692.1,0.24850408]
[1754009968888,0.117,3693.2,3692.1,0.24850408]
[1754009968889,5.174,3692.3,3692.1,0.24850408]
[1754009969070,5.1801424,3692.2,3692.1,0.24851068]
[1754009969272,1.3326424,3692.2,3692.1,0.24851068]
[1754009969601,5.1791424,3692.2,3692.1,0.24851068]
[1754009969884,7.14055664,3692.2,3692.1,0.24851068]
[1754009970460,1.96755664,3692.2,3692.1,0.24851068]
[1754009970653,6.6216424,3692.2,3692.1,0.24851068]
[1754009971063,36.6216424,3692.2,3692.1,0.24851068]
[1754009971462,36.7568424,3692.2,3692.1,0.24851068]
[1754009972681,13.2678424,3692.2,3692.1,0.24851068]
[1754009972877,43.2678424,3692.2,3692.1,0.24851068]
[1754009973083,15.99267516,3692.2,3692.1,0.24851068]
[1754009973704,15.66694619,3692.2,3692.1,0.24881484]
[1754009974068,47.39816459,3692.2,3692.1,0.24801484]
[1754009974967,2.70869152,3691.9,3690.1,0.20271809]
[1754009975165,17.68975227,3692.2,3690.0,1.9019]
[1754009975166,0.1352,3690.6,3690.0,1.9019]
[1754009975383,0.1352,3690.2,3690.1,3.257566]
[1754009975606,5.3002,3690.2,3689.9,0.55]
[1754009975768,5.165,3690.4,3690.2,0.55]
[1754009976118,2.61321172,3690.4,3690.3,2.8942]
[1754009976326,2.74841172,3690.4,3690.3,2.8942]
[1754009976630,0.88201022,3691.8,3690.4,0.55]
[1754009976765,0.0297,3692.0,3690.5,1.9019]
[1754009977127,3.26279345,3691.9,3690.6,0.9923]
[1754009977329,5.163,3691.8,3690.8,0.55]
[1754009977617,0.1352,3691.1,3691.0,0.55]
[1754009977967,3.75007355,3691.2,3690.8,1.9019]
[1754009978221,0.1352,3691.1,3690.9,2.4519]
[1754009978563,0.1352,3691.1,3690.6,0.55]
[1754009978767,0.1352,3690.9,3690.8,0.55]
[1754009978999,6.511,3692.2,3690.4,0.55]
[1754009979200,0.1352,3691.1,3690.9,0.55]
[1754009979568,0.1352,3691.1,3691.0,2.4519]
[1754009980090,2.41902234,3691.3,3690.8,0.55]
[1754009980296,0.1352,3691.2,3690.8,2.4519]
[1754009980482,0.25542223,3691.2,3690.6,0.55]
[1754009980802,0.1352,3690.9,3690.6,0.55]
[1754009981111,5.158,3691.1,3690.8,0.55]
[1754009981421,0.1352,3690.6,3690.3,1.9019]
[1754009981708,5.157,3691.1,3690.5,0.55]
[1754009981891,0.1352,3690.9,3690.7,0.55]
[1754009982268,0.1352,3690.9,3690.5,0.55]
[1754009982703,0.1352,3690.9,3690.7,0.55]
[1754009983109,0.35272495,3690.9,3690.4,2.0371]
[1754009983270,1.62715863,3691.1,3690.4,0.1352]
[1754009983608,1.30140886,3691.1,3689.9,1.9011]
[1754009983776,1.30140886,3691.1,3690.0,0.55]
[1754009984170,5.153,3691.0,3690.0,0.55]
[1754009985103,3.25278753,3691.0,3689.9,0.55]
[1754009985302,3.25278753,3691.0,3688.4,0.32063692]
[1754009985303,0.32527875,3690.9,3689.1,1.9019]
[1754009985506,0.1352,3689.7,3689.2,0.1352]
[1754009985706,0.1352,3689.4,3689.0,1.9019]
[1754009986071,5.151,3689.6,3688.4,1.9019]
[1754009986072,4.30877369,3689.6,3688.4,1.9019]
[1754009986274,13.97881742,3690.0,3688.5,0.4584]
[1754009986275,0.1352,3688.8,3688.5,0.4584]
[1754009986473,0.1352,3689.0,3688.6,2.55775]
[1754009986704,5.15,3689.2,3688.0,2.3082]
[1754009986881,5.15,3689.2,3688.1,0.24971878]
[1754009987086,3.79222417,3689.2,3688.2,0.24971878]
[1754009987284,0.0008,3689.1,3688.3,0.24971878]
[1754009987577,30.0,3688.8,3688.4,0.24971878]
[1754009987777,2.864,3688.9,3688.5,0.24971878]
[1754009987778,2.247142,3688.7,3688.5,0.24971878]
[1754009988010,0.0008,3688.7,3688.6,0.24971878]
[1754009988306,5.148,3688.7,3688.6,0.24971878]
[1754009989007,5.148,3688.7,3687.5,1.74658654]
[1754009989008,5.147,3688.7,3687.5,1.74658654]
[1754009989209,5.2502,3688.7,3687.5,1.74658654]
[1754009989512,5.2502,3688.7,3687.2,0.4584]
[1754009989513,30.0,3688.6,3687.2,0.4584]
[1754009989724,2.72483276,3688.5,3686.2,0.28488376]
[1754009989923,5.146,3688.4,3687.3,0.4584]
[1754009990125,4.8296056,3689.0,3687.4,0.55]
[1754009990324,3.24563358,3688.9,3687.6,0.55]
[1754009990622,4.8296056,3689.0,3687.8,0.55]
[1754009990930,10.65398212,3690.5,3688.5,0.55]
[1754009990931,0.1032,3690.0,3688.5,0.55]
[1754009991132,5.145,3690.6,3688.7,3.55]
[1754009991334,3.2445433,3690.5,3688.9,0.55]
[1754009991628,5.144,3690.4,3688.9,0.55]
[1754009991825,5.144,3690.4,3688.8,0.55]
[1754009991826,5.144,3690.3,3688.8,0.55]
[1754009992127,4.2697944,3690.3,3688.8,0.55]
[1754009992309,2.14467115,3690.3,3688.8,0.55]
[1754009992702,5.142,3690.2,3688.8,0.55]
[1754009993129,5.2452,3690.2,3688.8,0.55]
[1754009993451,13.36322059,3691.1,3688.8,0.55]
[1754009993452,5.142,3690.1,3688.8,0.55]
[1754009993645,4.81621894,3690.1,3688.8,0.55]
[1754009993797,4.81621894,3690.1,3688.1,3.0]
[1754009993798,0.75260864,3690.0,3688.4,0.55]
[1754009994429,30.0,3690.0,3688.4,0.55]
[1754009994726,30.0,3689.6,3687.5,2.71185565]
[1754009994931,30.0,3689.6,3687.6,1.8498]
[1754009995527,28.099339,3689.6,3687.6,1.8498]
[1754009995846,30.0,3689.6,3687.8,0.55]
[1754009996141,30.0,3689.6,3687.8,0.5492]
[1754009996435,13.36423101,3689.7,3687.8,0.5492]
[1754009996600,30.0,3689.6,3687.8,0.5492]
[1754009996797,0.1352,3688.0,3687.8,0.5492]
[1754009997124,0.1352,3688.0,3687.6,1.8498]
[1754009997353,0.1352,3687.8,3687.7,2.3082]
[1754009997548,0.1352,3687.8,3687.7,1.8498]
[1754009997838,0.1352,3687.8,3687.4,0.55]
[1754009998042,1.7889512,3688.5,3687.4,5.3998]
[1754009998250,0.1352,3687.8,3687.3,0.136]
[1754009998458,0.1352,3687.8,3687.1,0.4584]
[1754009998459,0.06748215,3688.5,3687.1,0.4584]
[1754009998625,0.136,3687.3,3687.2,0.55]
[1754009998820,0.136,3687.3,3687.2,5.3998]
[1754009999022,0.136,3687.3,3686.8,0.136]
[1754009999023,0.136,3687.3,3686.8,1.9858]
[1754009999255,5.134,3688.3,3686.9,1.8498]
[1754009999457,0.136,3687.3,3686.9,2.3082]
[1754009999661,0.136,3687.3,3687.0,0.55]
[1754010000093,5.134,3688.3,3686.8,0.55]
[1754010000255,40.00228576,3688.2,3686.2,1.8498]
[1754010000456,10.65398212,3687.5,3685.9,0.60334695]
[1754010000751,30.0,3687.3,3685.6,2.3082]
[1754010001151,30.0,3687.3,3685.7,0.24936858]
[1754010001357,30.0,3687.3,3685.8,0.24936858]
[1754010001555,10.65398212,3686.8,3685.9,0.24936858]
[1754010001753,30.0,3686.7,3686.0,0.24936858]
[1754010002074,30.0,3686.8,3686.1,0.24936858]
[1754010002404,10.65398212,3687.3,3686.2,0.24936858]
[1754010002405,28.6419497,3686.9,3686.2,0.24936858]
[1754010002679,5.13,3686.9,3686.4,0.55]
[1754010002838,13.3654727,3688.1,3686.6,0.55]
[1754010003043,9.515,3688.2,3686.8,0.55]
[1754010003044,5.13,3688.0,3686.8,0.55]
[1754010003257,5.129,3687.9,3687.0,0.55]
[1754010003473,5.129,3687.9,3687.2,0.55]
[1754010003644,2.90208502,3687.9,3687.4,0.55]
[1754010003847,2.90208502,3687.9,3686.4,0.4584]
[1754010003848,2.90208502,3687.9,3687.6,0.55]
[1754010004042,30.0,3687.8,3687.7,0.79936858]
[1754010004265,32.71164379,3687.8,3687.7,0.79936858]
[1754010004644,30.81038874,3687.8,3687.7,0.79936858]
[1754010004871,30.81038874,3687.8,3685.8,0.4584]
[1754010004872,2.71200055,3687.4,3685.8,0.4584]
[1754010005110,28.09874495,3687.3,3685.8,0.4584]
[1754010005403,30.8109268,3687.1,3685.2,1.8498]
[1754010005612,26.19721445,3686.5,3684.8,1.8498]
[1754010005770,26.19721445,3686.5,3684.6,0.4584]
[1754010005771,35.126,3686.4,3684.6,0.4584]
[1754010005975,30.0,3686.3,3684.6,0.4584]
[1754010006321,30.0,3686.3,3684.4,1.8498]
[1754010006322,2.7130983,3685.9,3684.4,1.8498]
[1754010006466,30.0,3685.7,3684.4,1.8498]
[1754010006675,5.125,3685.6,3684.5,0.4584]
[1754010006875,5.125,3685.6,3684.6,2.3998]
[1754010007384,5.124,3685.5,3684.6,2.3998]
[1754010007581,3.22223544,3685.5,3684.6,1.8498]
[1754010007772,3.22223544,3685.5,3684.2,0.60334695]
[1754010008176,28.64161092,3685.4,3684.2,0.60334695]
[1754010008470,30.0,3685.4,3684.0,1.8498]
[1754010008806,28.09828382,3685.4,3683.7,1.8498]
[1754010009006,32.71348002,3685.4,3683.7,1.8498]
[1754010009304,2.24418169,3685.5,3683.5,1.8498]
[1754010009305,2.71376839,3685.0,3683.5,1.8498]
[1754010009510,6.517,3686.5,3683.5,1.8498]
[1754010009808,2.7135569,3685.3,3683.6,0.4584]
[1754010009997,30.0,3685.1,3683.6,0.4584]
[1754010010205,0.136,3683.7,3683.6,0.4584]
[1754010010402,0.136,3683.7,3683.6,2.3082]
[1754010010708,0.136,3683.7,3683.0,0.136]
[1754010010872,5.121,3684.4,3682.9,0.136]
[1754010010873,0.136,3683.4,3682.9,0.136]
[1754010011078,0.136,3683.4,3683.0,2.59333028]
[1754010011274,0.136,3683.4,3683.0,0.28513028]
[1754010011481,30.0,3684.3,3682.7,1.8498]
[1754010011830,2.71421979,3684.3,3681.2,5.12]
[1754010011997,0.136,3682.7,3682.3,1.8498]
[1754010012177,0.136,3682.7,3681.5,2.71622879]
[1754010012178,5.12,3683.8,3682.4,2.3082]
[1754010012422,0.136,3682.6,3682.4,2.53902]
[1754010012627,5.12,3683.8,3682.5,2.3082]
[1754010012828,3.21784194,3683.8,3682.6,0.55]
[1754010013025,30.25317245,3683.7,3682.6,0.55]
[1754010013245,0.136,3682.7,3682.6,0.55]
[1754010013529,0.38917245,3682.7,3682.6,2.8582]
[1754010013748,0.38917245,3682.7,3682.6,0.62987196]
[1754010014062,0.38917245,3682.7,3681.9,0.136]
[1754010014268,0.136,3682.5,3681.9,0.136]
[1754010014568,5.118,3683.7,3682.3,0.55]
[1754010014797,0.136,3682.9,3682.2,0.136]
[1754010014929,2.1993,3684.5,3681.3,3.0]
[1754010014930,0.2530428,3682.8,3681.3,3.0]
[1754010015129,0.2530428,3682.7,3681.0,0.26105359]
[1754010015323,0.2530428,3682.6,3681.8,3.0]
[1754010015565,0.2530428,3682.5,3681.9,0.57161238]
[1754010015783,0.4293,3684.0,3682.0,0.3293]
[1754010016098,1.77,3683.7,3682.0,5.01423418]
[1754010016290,1.77,3683.7,3681.6,7.8322045]
[1754010016291,1.77,3683.7,3682.3,2.71564256]
[1754010016563,0.429,3684.8,3682.8,2.71528099]
[1754010016862,1.9408,3684.7,3683.0,0.55]
[1754010017169,1.9408,3685.2,3683.0,0.02715177]
[1754010017338,1.9408,3685.2,3683.1,0.02715104]
[1754010017544,1.9408,3685.2,3683.3,2.71494376]
[1754010017850,1.17748,3685.1,3683.3,2.71495646]
[1754010018051,1.9408,3685.7,3683.4,1.61171806]
[1754010018253,1.9408,3685.7,3683.7,2.71460676]
[1754010018567,1.9408,3685.7,3683.9,3.0]
[1754010018740,10.65398212,3687.4,3684.0,0.0271444]
[1754010018938,1.9408,3686.7,3684.4,0.55]
[1754010019150,0.23698,3686.6,3684.5,3.340491]
[1754010019363,0.23698,3686.6,3684.6,0.55]
[1754010019668,0.23698,3686.6,3684.5,9.23703149]
[1754010019669,1.9408,3687.2,3685.5,0.55]
[1754010019832,1.9408,3687.6,3686.1,2.71288664]
[1754010020037,1.9408,3687.6,3685.4,2.71340525]
[1754010020329,1.9408,3687.6,3686.2,1.8806]
[1754010020528,0.66598,3687.5,3685.9,1.8852]
[1754010020728,0.23698,3687.5,3685.9,3.23566156]
[1754010020964,0.23698,3687.5,3685.6,5.92209782]
[1754010021141,0.23698,3687.5,3685.7,0.02713188]
[1754010021463,0.23698,3687.5,3686.5,2.7125755]
[1754010021767,0.217778,3687.4,3684.9,3.0]
[1754010021941,0.217778,3687.4,3685.9,2.71303965]
[1754010022145,10.65398212,3687.0,3683.5,0.34098483]
[1754010022452,10.65398212,3687.0,3683.9,2.666895]
[1754010022453,2.3698,3686.9,3683.9,2.666895]
[1754010022655,0.217778,3687.4,3684.5,2.71407246]
[1754010022870,1.9408,3687.5,3684.7,3.0]
[1754010023178,1.9408,3687.5,3684.8,4.59444936]
[1754010023334,0.429,3687.4,3685.5,2.71333328]
[1754010023537,1.9408,3687.3,3685.6,1.8806]
[1754010023849,1.9408,3688.3,3685.8,3.0]
[1754010024052,0.23698,3688.2,3686.8,2.71234662]
[1754010024369,0.23698,3688.2,3686.6,2.06048267]
[1754010024587,1.9408,3688.1,3686.3,5.105]
[1754010024891,4.9408,3688.1,3686.7,2.71244118]
[1754010025071,4.9408,3688.1,3685.9,0.87132374]
[1754010025270,5.501478,3688.0,3686.1,2.71282647]
[1754010025566,5.501478,3688.0,3686.8,0.136]
[1754010025567,0.1352,3687.4,3686.8,0.136]
[1754010025727,5.501478,3688.0,3686.8,2.71236957]
[1754010025931,0.1352,3687.9,3687.3,0.136]
[1754010026952,1.9408,3688.8,3687.1,1.0423]
[1754010027153,0.429,3689.3,3687.1,1.0423]
[1754010027154,0.429,3689.3,3687.8,0.1352]
[1754010027404,0.1352,3688.8,3688.2,0.1352]
[1754010027735,0.25287365,3688.7,3688.4,0.1352]
[1754010028070,6.13708182,3689.7,3687.2,0.37545814]
[1754010028071,0.25287365,3688.6,3687.2,3.37545814]
[1754010028289,0.25287365,3688.5,3687.3,0.8187592]
[1754010028497,0.25287365,3688.4,3687.8,2.71158464]
[1754010028657,0.25287365,3688.4,3687.4,5.099]
[1754010028658,0.25287365,3688.3,3687.4,7.81091356]
[1754010028832,0.25287365,3688.2,3687.5,2.7118644]
[1754010029037,0.25287365,3688.1,3688.0,2.71149674]
[1754010029337,0.25287365,3688.1,3687.5,0.78108644]
[1754010029338,6.13708182,3689.7,3687.5,2.7118644]
[1754010029681,6.13708182,3689.7,3687.2,2.71208505]
[1754010029836,1.9448,3689.4,3687.7,2.71171733]
[1754010030038,0.19448,3689.3,3687.7,2.13478841]
[1754010030243,1.9408,3689.2,3687.8,5.096]
[1754010030494,0.55,3689.1,3687.5,5.096]
[1754010030769,0.004,3689.4,3688.7,2.71095774]
[1754010030935,0.004,3689.4,3688.6,2.71104617]
[1754010031155,0.004,3689.4,3687.5,5.096]
[1754010031156,0.004,3689.4,3688.4,2.71113352]
[1754010031520,0.004,3689.4,3687.1,13.36609959]
[1754010031521,1.9408,3689.3,3686.8,3.0]
[1754010031812,1.9408,3689.3,3686.9,0.3]
[1754010031813,0.55,3689.1,3686.9,0.3]
[1754010032104,0.55,3688.9,3687.1,2.7121586]
[1754010032310,0.55,3688.9,3688.1,2.7113505]
[1754010032511,0.55,3689.1,3688.3,2.71121997]
[1754010032659,0.554,3689.4,3688.3,2.71127531]
[1754010032860,0.55,3689.2,3688.0,5.091]
[1754010033178,0.55,3689.2,3686.8,2.71231816]
[1754010033179,0.55,3689.0,3687.0,5.091]
[1754010033381,0.55,3688.8,3687.0,5.091]
[1754010033761,0.55,3688.6,3687.2,2.7120166]
[1754010033959,0.55,3688.4,3687.1,0.4428]
[1754010034187,0.55,3688.4,3686.5,4.61901073]
[1754010034463,0.55,3688.2,3686.6,5.09]
[1754010034697,0.55,3688.4,3686.6,5.09]
[1754010034942,0.55,3688.4,3687.6,2.71176837]
[1754010035065,1.9448,3689.4,3688.1,2.71135743]
[1754010035266,1.9448,3689.4,3687.7,5.36017684]
[1754010035514,1.9448,3689.4,3687.9,2.71156028]
[1754010035815,0.004,3689.4,3688.8,2.71084106]
[1754010035963,0.004,3689.4,3688.7,3.75759019]
[1754010036516,0.004,3689.4,3689.2,2.71058879]
[1754010036715,0.004,3689.4,3689.0,2.71075336]
[1754010037006,0.004,3689.4,3688.9,2.7107626]
[1754010037220,0.004,3689.4,3688.8,0.4428]
[1754010037368,0.004,3689.4,3689.3,2.71054129]
[1754010037808,0.004,3689.4,3689.3,0.4428]
[1754010037965,0.004,3689.4,3689.3,3.15334129]
[1754010038167,0.004,3689.4,3689.3,2.96281874]
[1754010038684,0.004,3689.4,3689.3,0.1352]
[1754010038885,0.004,3689.4,3689.3,2.84574129]
[1754010039277,0.004,3689.4,3689.3,0.1352]
[1754010039477,0.004,3689.4,3689.3,6.63872126]
[1754010039711,0.004,3689.4,3689.3,11.72072126]
[1754010039922,0.004,3689.4,3689.3,8.72072126]
[1754010040103,0.004,3689.4,3689.3,3.95252126]
[1754010040304,0.004,3689.4,3689.3,3.15954129]
[1754010040507,0.004,3689.4,3689.3,7.27631642]
[1754010040835,0.004,3689.4,3689.3,5.82537608]
[1754010041034,0.004,3689.4,3689.3,7.92574129]
[1754010041195,0.004,3689.4,3689.3,0.1352]
[1754010041531,0.80640827,3689.4,3689.3,0.1352]
[1754010041824,0.80640827,3689.4,3689.3,3.44945706]
[1754010041992,0.80640827,3689.4,3689.3,6.15999835]
[1754010042338,0.55,3690.4,3689.5,2.71035916]
[1754010042482,0.8555,3690.4,3689.3,2.09234622]
[1754010042816,0.8555,3690.4,3688.4,2.71118792]
[1754010043026,0.1352,3690.2,3689.7,0.1352]
[1754010043213,1.9408,3690.2,3689.8,0.24916787]
[1754010043393,0.45719407,3690.1,3689.9,0.24916787]
[1754010043596,0.1352,3690.2,3690.0,0.24916787]
[1754010043794,0.35945029,3690.4,3690.1,0.24916787]
[1754010044013,0.1352,3690.2,3689.7,0.1352]
[1754010044222,1.9408,3690.1,3689.8,0.24910998]
[1754010044522,1.9408,3690.1,3689.7,0.1352]
[1754010044523,1.9408,3690.1,3689.9,0.24910998]
[1754010044728,0.35945029,3690.4,3690.0,0.38430998]
[1754010044891,2.6415391,3690.3,3690.1,0.24910998]
[1754010045086,1.9408,3690.2,3689.9,0.1352]
[1754010045418,0.24354503,3690.3,3690.0,0.2490752]
[1754010045722,0.429,3690.3,3690.1,0.24903035]
[1754010045895,0.55,3690.1,3689.3,5.074]
[1754010046096,0.55,3690.1,3689.7,0.1352]
[1754010046300,0.02819407,3690.0,3689.8,0.24902435]
[1754010046490,0.1352,3690.2,3689.9,0.24902435]
[1754010046691,3.0,3691.8,3690.0,0.24902435]
[1754010046886,0.02819407,3690.9,3690.1,0.24902435]
[1754010047093,3.0,3691.6,3690.2,0.24902435]
[1754010047288,1.8424,3690.8,3690.3,0.24902435]
[1754010047511,1.8424,3690.8,3690.4,0.24902435]
[1754010047735,1.8424,3690.8,3690.5,0.24902435]
[1754010047891,1.8424,3691.4,3690.6,0.24902435]
[1754010048097,1.51673137,3691.4,3690.7,0.24902435]
[1754010048393,0.15167314,3691.3,3690.8,0.24902435]
[1754010048615,0.4309,3691.2,3690.9,0.24902435]
[1754010048825,0.55,3691.1,3691.0,0.24902435]
[1754010049126,0.9809,3691.1,3691.0,0.24902435]
[1754010049996,0.9809,3691.1,3688.3,13.36523582]
[1754010050139,3.55,3690.9,3689.2,5.068]
[1754010050438,0.55,3690.7,3689.1,2.71061773]
[1754010050614,0.55,3691.4,3689.0,5.068]
[1754010050800,0.55,3690.5,3689.0,5.068]
[1754010051208,0.55,3690.5,3689.4,2.7104557]
[1754010051432,0.55,3690.3,3689.1,0.4713]
[1754010051826,0.55,3690.3,3689.1,3.18197109]
[1754010052030,0.55,3690.3,3689.1,3.18198422]
[1754010052338,2.3924,3690.3,3689.1,3.18198633]
[1754010052515,0.55,3690.1,3689.2,5.065]
[1754010052722,0.55,3689.9,3688.2,5.17033095]
[1754010052933,0.55,3689.7,3688.2,7.88162603]
[1754010053112,0.55,3689.5,3688.2,5.17033095]
[1754010053432,0.55,3689.3,3688.2,5.17033095]
[1754010053619,0.55,3689.3,3688.3,0.4713]
[1754010053820,2.3924,3689.8,3688.4,2.71113683]
[1754010054021,0.55,3689.8,3688.3,0.4713]
[1754010054221,0.55,3689.6,3688.7,2.71092855]
[1754010054426,0.55,3689.6,3688.6,2.71105503]
[1754010054623,0.4309,3690.4,3688.7,0.27380406]
[1754010054829,1.8424,3690.2,3688.7,2.1542]
[1754010055059,0.55,3690.0,3689.0,2.71069105]
[1754010055214,0.55,3690.0,3688.9,2.7108233]
[1754010055528,0.55,3690.0,3688.7,2.1542]
[1754010055529,0.55,3690.1,3688.8,2.71087839]
[1754010055733,0.55,3690.1,3688.7,2.1542]
[1754010056059,1.8424,3690.6,3689.0,2.71076172]
[1754010056266,3.80230453,3690.5,3689.1,1.6829]
[1754010056466,2.30149407,3690.4,3688.9,8.24312373]
[1754010056668,0.1352,3690.1,3689.6,0.1352]
[1754010057766,0.55,3689.9,3689.6,0.1352]
[1754010058082,0.55,3689.7,3689.6,0.1352]
[1754010058372,0.80238984,3689.7,3689.6,3.1816209]
[1754010058568,0.80238984,3689.7,3689.6,0.6065]
[1754010058778,0.80238984,3689.7,3689.6,0.1352]
[1754010059137,0.80238984,3689.7,3689.6,2.8455209]
[1754010059537,0.80238984,3689.7,3689.6,4.5284209]
[1754010059741,0.80238984,3689.7,3689.6,2.91804269]
[1754010059937,0.80238984,3689.7,3689.6,2.32935578]
[1754010060139,0.80238984,3689.7,3689.6,4.01225578]
[1754010061068,0.25256449,3689.7,3689.6,4.9437209]
[1754010061221,0.1352,3691.0,3690.3,2.70976322]
[1754010061427,1.8424,3690.9,3689.9,2.71004388]
[1754010061670,0.55,3690.7,3690.0,5.053]
[1754010061858,0.55,3690.7,3689.9,5.053]
[1754010062025,0.55,3690.7,3690.3,0.1352]
[1754010062222,0.55,3690.5,3689.0,1.6829]
[1754010062486,0.55,3690.3,3689.7,0.1352]
[1754010062771,0.22733,3690.8,3688.4,1.6829]
[1754010062772,0.55,3690.1,3688.4,1.6829]
[1754010063076,3.22733,3690.8,3687.9,1.6829]
[1754010063077,0.55,3689.4,3687.9,1.6829]
[1754010063286,0.1352,3689.1,3688.6,0.1352]
[1754010063487,0.4309,3689.8,3688.7,1.6829]
[1754010063488,1.8424,3689.7,3688.7,1.6829]
[1754010063778,0.55,3689.5,3686.7,10.65398212]
[1754010063927,0.55,3689.3,3687.0,1.6829]
[1754010064125,0.55,3689.1,3687.4,5.05]
[1754010064461,0.55,3688.9,3686.9,1.6829]
[1754010064632,0.55,3688.7,3687.6,2.71179086]
[1754010064832,0.55,3688.7,3687.3,6.83723949]
[1754010065071,0.02819407,3688.6,3687.4,0.72525395]
[1754010065352,0.55,3688.5,3687.4,0.72525395]
[1754010065556,0.55,3688.5,3687.5,2.7118644]
[1754010065761,0.55,3688.5,3687.4,0.72525395]
[1754010065959,0.55,3688.3,3687.5,5.048]
[1754010066124,3.0,3688.7,3687.5,6.7309]
[1754010066327,0.55,3688.7,3688.0,2.71143391]
[1754010066528,0.55,3688.7,3688.1,2.71141601]
[1754010066727,0.55,3689.0,3687.5,5.048]
[1754010066957,1.8424,3689.6,3688.7,2.71091394]
[1754010067158,1.8424,3689.6,3688.6,2.71103818]
[1754010067376,0.4309,3690.5,3688.5,5.4613]
[1754010067580,1.8424,3690.4,3688.6,1.6829]
[1754010067871,1.8424,3690.4,3689.3,2.71050291]
[1754010068168,0.22733,3690.3,3689.6,2.71029112]
[1754010068333,0.22733,3690.3,3689.3,5.045]
[1754010068534,1.8424,3690.8,3689.3,7.75551031]
[1754010068726,0.02819407,3690.7,3689.3,7.42982968]
[1754010068929,0.02819407,3690.7,3688.6,2.71103698]
[1754010068930,0.55,3690.5,3688.9,5.044]
[1754010069169,0.55,3690.3,3687.5,2.71180031]
[1754010069353,0.55,3690.3,3687.4,10.65398212]
[1754010069354,3.55,3690.1,3687.7,5.044]
[1754010069527,0.55,3689.9,3688.3,2.71121214]
[1754010069731,3.55,3689.9,3687.8,0.98414005]
[1754010070033,0.55,3689.7,3687.8,0.98414005]
[1754010070243,0.55,3689.5,3687.8,0.98414005]
[1754010070442,0.55,3689.3,3687.2,0.741]
[1754010070736,0.55,3689.1,3687.4,5.042]
[1754010070930,0.55,3688.9,3687.4,5.783]
[1754010071268,0.55,3688.9,3688.2,2.71129081]
[1754010071466,0.55,3689.5,3687.5,0.741]
[1754010071638,0.55,3689.3,3688.1,2.71136894]
[1754010071970,0.55,3689.1,3688.1,7.75241485]
[1754010072269,2.3924,3689.1,3688.1,5.041]